bitfinex/quotes_BTCUSD_20240817
["timestamp","ask_amount","ask_price","bid_price","bid_amount"]
[1723916520806,1.76799482,59671.0,59670.0,0.1418005]
[1723916521381,1.6427564,59671.0,59670.0,0.1418005]
[1723916530348,1.74301699,59671.0,59670.0,0.1418005]
[1723916530556,1.1983382,59671.0,59670.0,0.1418005]
[1723916530757,0.96486992,59671.0,59670.0,0.1418005]
[1723916531127,0.96486992,59671.0,59670.0,0.1428005]
[1723916531331,0.96486992,59671.0,59670.0,0.1418005]
[1723916531908,1.06486992,59671.0,59670.0,0.1418005]
[1723916532685,1.15816992,59671.0,59670.0,0.1418005]
[1723916534127,1.15816992,59671.0,59670.0,0.1268005]
[1723916534845,1.15816992,59671.0,59670.0,0.1118005]
[1723916534846,1.131948,59671.0,59670.0,0.1118005]
[1723916534999,1.15818964,59671.0,59670.0,0.1118005]
[1723916535206,1.131948,59671.0,59670.0,0.1118005]
[1723916535407,1.15818987,59671.0,59670.0,0.1118005]
[1723916535652,1.131948,59671.0,59670.0,0.1118005]
[1723916535854,1.117948,59671.0,59670.0,0.1118005]
[1723916536278,1.125948,59671.0,59670.0,0.1118005]
[1723916536475,1.15218994,59671.0,59670.0,0.1118005]
[1723916536882,1.125948,59671.0,59670.0,0.1118005]
[1723916537054,1.15219008,59671.0,59670.0,0.1118005]
[1723916537254,1.111948,59671.0,59670.0,0.1118005]
[1723916537707,1.14819006,59671.0,59670.0,0.1118005]
[1723916537884,1.121948,59671.0,59670.0,0.1118005]
[1723916539780,1.14819002,59671.0,59670.0,0.1118005]
[1723916540003,1.121948,59671.0,59670.0,0.1118005]
[1723916540402,1.14819002,59671.0,59670.0,0.1118005]
[1723916540872,1.121948,59671.0,59670.0,0.1118005]
[1723916541523,1.14818979,59671.0,59670.0,0.112708]
[1723916541696,1.091948,59671.0,59670.0,0.112708]
[1723916541857,1.11818994,59671.0,59670.0,0.112708]
[1723916542245,1.11818994,59671.0,59670.0,0.113708]
[1723916542651,1.091948,59671.0,59670.0,0.112708]
[1723916542850,1.11818983,59671.0,59670.0,0.112708]
[1723916543049,1.091948,59671.0,59670.0,0.112708]
[1723916543261,1.11818997,59671.0,59670.0,0.112708]
[1723916546452,1.14818997,59671.0,59670.0,0.112708]
[1723916551954,1.14818997,59671.0,59670.0,0.113708]
[1723916552157,0.04506697,59671.0,59670.0,0.113708]
[1723916552364,0.018825,59671.0,59670.0,0.742163]
[1723916553344,0.018825,59671.0,59670.0,0.835463]
[1723916553545,0.010825,59671.0,59670.0,0.835463]
[1723916553896,0.011825,59671.0,59670.0,0.835463]
[1723916554105,0.011825,59671.0,59670.0,0.742163]
[1723916554257,0.001825,59671.0,59670.0,0.742163]
[1723916554664,0.002825,59671.0,59670.0,0.742163]
[1723916555454,0.002825,59671.0,59670.0,0.490781]
[1723916557589,0.002825,59671.0,59670.0,0.742163]
[1723916558399,0.002825,59671.0,59670.0,0.490781]
[1723916562927,0.002825,59671.0,59670.0,0.239399]
[1723916563128,0.002825,59671.0,59670.0,0.490781]
[1723916563679,0.409892,59671.0,59670.0,0.113708]
[1723916563805,0.66127,59671.0,59670.0,0.113708]
[1723916564446,0.66027,59671.0,59670.0,0.113708]
[1723916564794,0.65927,59671.0,59670.0,0.113708]
[1723916564997,0.66027,59671.0,59670.0,0.113708]
[1723916565649,0.65927,59671.0,59670.0,0.113708]
[1723916565858,0.66027,59671.0,59670.0,0.113708]
[1723916566056,0.66127,59671.0,59670.0,0.113708]
[1723916585889,0.128514,59671.0,59670.0,0.113708]
[1723916586083,0.002825,59671.0,59670.0,0.332699]
[1723916586286,0.002825,59671.0,59670.0,0.33605004]
[1723916586738,0.002825,59671.0,59670.0,0.239399]
[1723916587636,0.002825,59671.0,59670.0,0.490781]
[1723916589102,0.002825,59671.0,59670.0,0.584081]
[1723916590342,0.002825,59671.0,59670.0,0.490781]
[1723916599618,0.002825,59671.0,59670.0,0.239399]
[1723916600588,0.002825,59671.0,59670.0,0.490781]
[1723916602867,0.002825,59671.0,59670.0,0.239399]
[1723916606105,0.71377,59671.0,59670.0,0.0019075]
[1723916606381,0.74000926,59671.0,59670.0,0.0019075]
[1723916607147,0.71377,59671.0,59670.0,0.0019075]
[1723916625227,0.379892,59671.0,59670.0,0.0019075]
[1723916625422,0.379892,59671.0,59670.0,0.0631075]
[1723916626263,0.379892,59671.0,59670.0,0.0019075]
[1723916629118,0.460492,59671.0,59670.0,0.0019075]
[1723916638654,0.460492,59671.0,59670.0,0.0009075]
[1723916638655,0.89310885,59671.0,59670.0,0.0009075]
[1723916638906,1.11863298,59671.0,59670.0,0.0009075]
[1723916639078,1.24448685,59671.0,59670.0,0.0009075]
[1723916639284,1.36999764,59671.0,59670.0,0.0009075]
[1723916639794,1.36899764,59671.0,59670.0,0.0009075]
[1723916639996,1.24348685,59671.0,59670.0,0.0009075]
[1723916640246,1.2536059,59671.0,59670.0,0.0009075]
[1723916640853,1.37806169,59671.0,59670.0,0.0009075]
[1723916641094,1.2526059,59671.0,59670.0,0.0009075]
[1723916641303,1.38206149,59671.0,59670.0,0.0009075]
[1723916641678,1.39006149,59671.0,59670.0,0.0009075]
[1723916641880,1.39706149,59671.0,59670.0,0.0009075]
[1723916642144,1.30376149,59671.0,59670.0,0.0009075]
[1723916642342,1.2716059,59671.0,59670.0,0.0009075]
[1723916642556,1.37194503,59671.0,59670.0,0.0009075]
[1723916642721,1.2716059,59671.0,59670.0,0.0009075]
[1723916643251,1.37194301,59671.0,59670.0,0.0009075]
[1723916645457,1.2716059,59671.0,59670.0,0.0009075]
[1723916646922,1.29790275,59671.0,59670.0,0.0009075]
[1723916647584,1.37313006,59671.0,59670.0,0.0009075]
[1723916647789,1.27983071,59671.0,59670.0,0.0009075]
[1723916649087,1.27982958,59671.0,59670.0,0.0009075]
[1723916649273,1.25353273,59671.0,59670.0,0.0009075]
[1723916650247,1.34683273,59671.0,59670.0,0.0009075]
[1723916652439,1.34683039,59671.0,59670.0,0.0009075]
[1723916653659,1.34682348,59671.0,59670.0,0.0009075]
[1723916656174,1.2099059,59671.0,59670.0,0.0009075]
[1723916657840,1.35002348,59671.0,59670.0,0.0009075]
[1723916659231,2.16412952,59671.0,59670.0,5e-07]
[1723916659433,2.16512952,59671.0,59670.0,5e-07]
[1723916660192,1.530372,59667.0,59666.0,0.0009075]
[1723916660400,1.67961085,59667.0,59666.0,0.0009075]
[1723916661071,1.77291085,59667.0,59666.0,0.0009075]
[1723916661773,1.78691085,59667.0,59666.0,0.0009075]
[1723916662494,1.93708954,59667.0,59666.0,0.0009075]
[1723916662707,1.95108954,59667.0,59666.0,0.0009075]
[1723916662918,1.80091085,59667.0,59666.0,0.0009075]
[1723916663105,1.78691085,59667.0,59666.0,0.0009075]
[1723916663305,1.8495936,59667.0,59666.0,0.0009075]
[1723916663445,1.99973081,59667.0,59666.0,0.0009075]
[1723916665615,1.8495936,59667.0,59666.0,0.0009075]
[1723916665816,1.80091085,59667.0,59666.0,0.0009075]
[1723916669552,1.95085764,59667.0,59666.0,0.0009075]
[1723916671930,1.80091085,59667.0,59666.0,0.0009075]
[1723916672669,1.70461085,59667.0,59666.0,0.0009075]
[1723916673852,1.70661085,59667.0,59666.0,0.0009075]
[1723916674059,1.70761085,59667.0,59666.0,0.0009075]
[1723916674382,1.83909413,59667.0,59666.0,0.0009075]
[1723916675188,1.93239413,59667.0,59666.0,0.0009075]
[1723916678988,1.80091085,59667.0,59666.0,0.0009075]
[1723916682562,1.80998585,59667.0,59666.0,0.0009075]
[1723916683378,1.95995725,59667.0,59666.0,0.0009075]
[1723916684850,1.80998585,59667.0,59666.0,0.0009075]
[1723916688737,1.81290795,59667.0,59666.0,0.0009075]
[1723916689539,1.98446249,59667.0,59666.0,0.0009075]
[1723916691864,1.98154039,59667.0,59666.0,0.0009075]
[1723916695384,1.80998585,59667.0,59666.0,0.0009075]
[1723916696747,1.99979863,59667.0,59666.0,0.0009075]
[1723916697594,2.16862241,59667.0,59666.0,0.0009075]
[1723916697947,2.42001741,59667.0,59666.0,5e-07]
[1723916698351,2.59157195,59667.0,59666.0,5e-07]
[1723916698527,2.42274817,59667.0,59666.0,5e-07]
[1723916698925,0.034,59666.0,59665.0,1e-06]
[1723916699153,0.034,59666.0,59659.0,0.009075]
[1723916699154,0.359712,59660.0,59659.0,0.009075]
[1723916699356,1.31162117,59660.0,59659.0,0.009075]
[1723916699557,1.66424685,59660.0,59659.0,0.009075]
[1723916699755,1.91567085,59660.0,59659.0,0.009075]
[1723916700183,1.91567085,59660.0,59650.0,6.6e-07]
[1723916700184,0.001,59651.0,59650.0,6.6e-07]
[1723916700385,0.001,59651.0,59621.0,0.009075]
[1723916700386,0.607263,59640.0,59636.0,0.0634]
[1723916700635,1.23651985,59640.0,59639.0,0.151075]
[1723916700817,1.23651985,59640.0,59639.0,0.152075]
[1723916700818,1.58820379,59640.0,59639.0,0.152075]
[1723916701017,1.61120379,59640.0,59639.0,0.152075]
[1723916701217,1.51102885,59640.0,59639.0,0.152075]
[1723916701418,1.51102885,59640.0,59639.0,0.151075]
[1723916701642,1.60432885,59640.0,59639.0,0.151075]
[1723916702352,1.7045067,59640.0,59639.0,0.151075]
[1723916702555,1.60432885,59640.0,59639.0,0.151075]
[1723916702776,1.61632885,59640.0,59639.0,0.151075]
[1723916702907,1.74154538,59640.0,59639.0,0.151075]
[1723916703114,1.61632885,59640.0,59639.0,0.151075]
[1723916703310,1.62619424,59640.0,59639.0,0.151075]
[1723916703575,1.75141077,59640.0,59639.0,0.151075]
[1723916703763,1.72638333,59640.0,59639.0,0.151075]
[1723916704205,1.62619424,59640.0,59639.0,0.151075]
[1723916704322,1.64019424,59640.0,59639.0,0.151075]
[1723916705108,1.74038444,59640.0,59639.0,0.151075]
[1723916705312,1.64019424,59640.0,59639.0,0.151075]
[1723916705737,1.8868529,59640.0,59639.0,0.151075]
[1723916705935,1.64019424,59640.0,59639.0,0.151075]
[1723916706113,1.74038444,59640.0,59639.0,0.151075]
[1723916706893,1.64019424,59640.0,59639.0,0.151075]
[1723916707243,1.74035684,59640.0,59639.0,0.151075]
[1723916707444,1.64019424,59640.0,59639.0,0.151075]
[1723916707648,1.74035684,59640.0,59639.0,0.151075]
[1723916708429,1.71530746,59640.0,59639.0,0.151075]
[1723916708730,1.90802201,59640.0,59639.0,0.151075]
[1723916709127,1.80785941,59640.0,59639.0,0.151075]
[1723916709315,1.8829672,59640.0,59639.0,0.151075]
[1723916709910,1.90927874,59640.0,59639.0,0.151075]
[1723916710261,1.83417095,59640.0,59639.0,0.151075]
[1723916710465,1.93433355,59640.0,59639.0,0.072475]
[1723916711250,1.90925672,59640.0,59639.0,0.151075]
[1723916711677,1.93433355,59640.0,59639.0,0.151075]
[1723916712099,1.90925463,59640.0,59639.0,0.151075]
[1723916713741,1.83417095,59640.0,59639.0,0.151075]
[1723916714053,1.90925463,59640.0,59639.0,0.151075]
[1723916714402,1.83417095,59640.0,59639.0,0.151075]
[1723916714920,1.90925463,59640.0,59639.0,0.151075]
[1723916715318,1.83417095,59640.0,59639.0,0.151075]
[1723916715517,1.83417095,59640.0,59639.0,0.152075]
[1723916715717,1.83417095,59640.0,59639.0,0.151075]
[1723916716230,1.8842048,59640.0,59639.0,0.151075]
[1723916716775,1.71653963,59640.0,59639.0,0.151075]
[1723916716929,1.66650578,59640.0,59639.0,0.151075]
[1723916717130,1.71654279,59640.0,59639.0,0.151075]
[1723916717333,1.69354279,59640.0,59639.0,0.151075]
[1723916717494,1.85176379,59640.0,59639.0,0.151075]
[1723916718094,1.80172678,59640.0,59639.0,0.151075]
[1723916719011,1.60172678,59640.0,59639.0,0.151075]
[1723916720459,1.50842678,59640.0,59639.0,0.152075]
[1723916720659,0.61779554,59640.0,59639.0,0.152075]
[1723916720915,0.184221,59640.0,59639.0,0.152075]
[1723916721088,0.151754,59640.0,59639.0,0.152075]
[1723916721287,0.403263,59640.0,59639.0,0.152075]
[1723916721486,0.654772,59640.0,59639.0,0.152075]
[1723916721685,0.642772,59640.0,59639.0,0.152075]
[1723916722046,0.930281,59640.0,59639.0,0.152075]
[1723916722480,0.924281,59640.0,59639.0,0.152075]
[1723916722675,0.910281,59640.0,59639.0,0.152075]
[1723916722880,0.918281,59640.0,59639.0,0.152075]
[1723916723181,0.918281,59640.0,59639.0,0.151075]
[1723916723379,1.010281,59640.0,59639.0,0.151075]
[1723916723588,1.014281,59640.0,59639.0,0.151075]
[1723916723805,1.014281,59640.0,59639.0,0.152075]
[1723916724418,1.016281,59640.0,59639.0,0.152075]
[1723916725440,0.764772,59640.0,59639.0,0.152075]
[1723916726845,0.760772,59640.0,59639.0,0.152075]
[1723916727087,0.758772,59640.0,59639.0,0.152075]
[1723916727624,0.507263,59640.0,59639.0,0.152075]
[1723916728659,0.852072,59640.0,59639.0,0.152075]
[1723916730031,0.852072,59640.0,59639.0,0.073475]
[1723916730845,0.854072,59640.0,59639.0,0.073475]
[1723916731185,1.109581,59640.0,59639.0,0.073475]
[1723916731368,0.858072,59640.0,59639.0,0.073475]
[1723916731564,1.109581,59640.0,59639.0,0.073475]
[1723916734045,1.13583599,59640.0,59639.0,0.073475]
[1723916734580,1.109581,59640.0,59639.0,0.073475]
[1723916737442,0.261754,59640.0,59639.0,0.154975]
[1723916737697,0.131754,59640.0,59639.0,0.154975]
[1723916738039,0.383263,59640.0,59639.0,0.154975]
[1723916738425,0.377263,59640.0,59639.0,0.154975]
[1723916738826,0.383263,59640.0,59639.0,0.154975]
[1723916739227,0.381263,59640.0,59639.0,0.154975]
[1723916742599,0.004,59640.0,59639.0,0.154975]
[1723916742889,0.129754,59640.0,59639.0,0.154975]
[1723916743094,0.004,59640.0,59639.0,0.154975]
[1723916747129,0.129754,59640.0,59639.0,0.154975]
[1723916750622,0.381263,59640.0,59639.0,0.154975]
[1723916752374,0.004,59640.0,59639.0,0.154975]
[1723916752578,0.004,59640.0,59639.0,0.280731]
[1723916752981,0.004,59640.0,59639.0,0.154975]
[1723916753596,0.004,59640.0,59639.0,0.280731]
[1723916753789,0.004,59640.0,59639.0,0.783757]
[1723916753989,0.004,59640.0,59639.0,0.80500859]
[1723916755183,0.004,59640.0,59639.0,0.783757]
[1723916755401,0.004,59640.0,59639.0,0.80500804]
[1723916756229,0.004,59640.0,59639.0,1.05752104]
[1723916756477,0.004,59640.0,59639.0,1.05952104]
[1723916757253,0.000825,59650.0,59649.0,0.001]
[1723916757254,0.126558,59650.0,59649.0,0.001]
[1723916757466,0.126558,59650.0,59649.0,0.141]
[1723916757668,0.000825,59650.0,59649.0,0.266735]
[1723916758646,0.002825,59650.0,59649.0,0.27008745]
[1723916758936,0.002825,59650.0,59649.0,0.266735]
[1723916759135,0.003825,59650.0,59649.0,0.266735]
[1723916760800,0.003825,59650.0,59649.0,0.141]
[1723916761376,0.000825,59650.0,59649.0,0.141]
[1723916762005,0.002825,59650.0,59649.0,0.269735]
[1723916763826,0.002825,59650.0,59649.0,0.521206]
[1723916764434,0.002825,59650.0,59649.0,0.269735]
[1723916764632,0.002825,59650.0,59649.0,0.521206]
[1723916764836,0.002825,59650.0,59649.0,1.02750042]
[1723916765037,0.002825,59650.0,59649.0,1.02850042]
[1723916765244,0.002825,59650.0,59649.0,1.02750042]
[1723916765484,0.002825,59650.0,59649.0,1.04874922]
[1723916765896,0.002825,59650.0,59649.0,1.04974922]
[1723916766088,0.002825,59650.0,59649.0,1.04874922]
[1723916766679,0.002825,59650.0,59649.0,0.7939258]
[1723916766877,0.002825,59650.0,59649.0,0.772677]
[1723916767123,0.002825,59650.0,59649.0,0.79392456]
[1723916767441,0.002825,59650.0,59649.0,0.772677]
[1723916769333,0.002825,59650.0,59649.0,0.773677]
[1723916769689,0.002825,59650.0,59649.0,0.79492421]
[1723916770437,0.002825,59650.0,59649.0,1.04639521]
[1723916770631,0.002825,59650.0,59649.0,0.79492421]
[1723916771424,0.002825,59650.0,59649.0,0.773677]
[1723916773720,0.002825,59650.0,59649.0,1.029148]
[1723916774350,0.002825,59650.0,59649.0,1.22194953]
[1723916775936,0.002825,59650.0,59649.0,1.20070254]
[1723916776135,0.002825,59650.0,59649.0,1.2228568]
[1723916776336,0.002825,59650.0,59649.0,1.2208568]
[1723916776571,0.000825,59650.0,59649.0,1.2178568]
[1723916776785,0.001825,59650.0,59649.0,1.2238568]
[1723916777005,0.002825,59650.0,59649.0,1.2318568]
[1723916777342,0.001825,59650.0,59649.0,1.2238568]
[1723916777772,0.002825,59650.0,59649.0,1.2398568]
[1723916777974,0.002825,59650.0,59649.0,1.2378568]
[1723916780197,0.002825,59650.0,59649.0,1.2398568]
[1723916780824,0.002825,59650.0,59649.0,1.2418568]
[1723916788273,0.002825,59650.0,59649.0,1.23785682]
[1723916788745,0.002825,59650.0,59649.0,1.33115682]
[1723916792021,0.002825,59650.0,59649.0,0.73643128]
[1723916792238,0.002825,59650.0,59649.0,0.42236028]
[1723916792239,0.083625,59650.0,59649.0,0.42236028]
[1723916796170,0.083625,59650.0,59649.0,0.67383128]
[1723916796371,0.083625,59650.0,59649.0,0.42236028]
[1723916797762,0.083625,59650.0,59649.0,0.67383128]
[1723916797968,0.083625,59650.0,59649.0,0.42236028]
[1723916798647,0.002825,59650.0,59649.0,0.42236028]
[1723916799075,0.002825,59650.0,59649.0,0.67383128]
[1723916799468,0.002825,59650.0,59649.0,0.42236028]
[1723916800366,0.002825,59650.0,59649.0,0.67383128]
[1723916801227,0.145225,59650.0,59649.0,0.04515428]
[1723916801429,0.270958,59650.0,59649.0,0.04515428]
[1723916801635,0.270958,59650.0,59649.0,0.0239075]
[1723916801840,0.145225,59650.0,59649.0,0.0239075]
[1723916802045,0.270958,59650.0,59649.0,0.0239075]
[1723916802328,0.269958,59650.0,59649.0,0.0159075]
[1723916802539,0.269958,59650.0,59649.0,0.0229075]
[1723916802779,0.77389,59650.0,59649.0,0.0229075]
[1723916802994,1.025356,59650.0,59649.0,0.0219075]
[1723916803250,1.024356,59650.0,59649.0,0.0079075]
[1723916803447,1.2016578,59650.0,59649.0,0.0199075]
[1723916803651,1.15060552,59650.0,59649.0,0.0129075]
[1723916803850,1.15060552,59650.0,59649.0,0.0079075]
[1723916803851,1.19972371,59650.0,59649.0,0.0079075]
[1723916804168,1.14960552,59650.0,59649.0,0.0089075]
[1723916804387,1.19972559,59650.0,59649.0,0.0119075]
[1723916804758,1.19972559,59650.0,59649.0,0.0089075]
[1723916804916,1.2097897,59650.0,59649.0,0.0079075]
[1723916805117,1.2147897,59650.0,59649.0,0.0089075]
[1723916805530,1.2147897,59650.0,59649.0,0.0019075]
[1723916805769,1.2207897,59650.0,59649.0,0.0029075]
[1723916806626,1.14442011,59650.0,59649.0,0.0029075]
[1723916815249,1.17072685,59650.0,59649.0,0.0029075]
[1723916816303,1.14442011,59650.0,59649.0,0.0029075]
[1723916816924,1.39588611,59650.0,59649.0,0.0029075]
[1723916817354,1.14442011,59650.0,59649.0,0.0029075]
[1723916817564,1.17067309,59650.0,59649.0,0.0029075]
[1723916817780,1.14442011,59650.0,59649.0,0.0029075]
[1723916817982,1.22062815,59650.0,59649.0,0.0029075]
[1723916818365,1.14442011,59650.0,59649.0,0.0029075]
[1723916818792,1.13942011,59650.0,59649.0,0.0019075]
[1723916819179,1.14442011,59650.0,59649.0,0.0019075]
[1723916819348,1.1706734,59650.0,59649.0,0.0019075]
[1723916819713,1.15642011,59650.0,59649.0,0.0019075]
[1723916820200,1.18267328,59650.0,59649.0,0.0019075]
[1723916820401,1.15642011,59650.0,59649.0,0.0019075]
[1723916821585,1.15642011,59650.0,59649.0,0.0029075]
[1723916821586,0.27628911,59650.0,59649.0,0.0029075]
[1723916821787,0.023825,59650.0,59649.0,0.1909425]
[1723916821988,0.023825,59650.0,59649.0,0.0652075]
[1723916822389,0.012825,59650.0,59649.0,0.0642075]
[1723916822590,0.138558,59650.0,59649.0,0.0642075]
[1723916822819,0.136558,59650.0,59649.0,0.0642075]
[1723916822992,0.137558,59650.0,59649.0,0.0642075]
[1723916823333,0.001825,59650.0,59649.0,0.0642075]
[1723916823559,0.002825,59650.0,59649.0,0.0642075]
[1723916823895,0.001825,59650.0,59649.0,0.0642075]
[1723916824297,0.128558,59650.0,59649.0,0.0642075]
[1723916825371,0.002825,59650.0,59649.0,0.0642075]
[1723916826193,0.002825,59650.0,59649.0,0.1899425]
[1723916826392,0.002825,59650.0,59649.0,0.0642075]
[1723916828373,0.002825,59650.0,59649.0,0.0019075]
[1723916829000,0.002825,59650.0,59649.0,0.1276425]
[1723916829212,0.002825,59650.0,59649.0,0.0019075]
[1723916831500,0.128558,59650.0,59649.0,0.0019075]
[1723916831724,0.002825,59650.0,59649.0,0.0019075]
[1723916832126,0.128558,59650.0,59649.0,0.0019075]
[1723916832705,0.002825,59650.0,59649.0,0.0019075]
[1723916834187,0.128558,59650.0,59649.0,0.0019075]
[1723916834841,0.002825,59650.0,59649.0,0.0019075]
[1723916836252,0.128558,59650.0,59649.0,0.0019075]
[1723916836498,0.380024,59650.0,59649.0,0.0019075]
[1723916836700,0.128558,59650.0,59649.0,0.0019075]
[1723916837358,0.380024,59650.0,59649.0,0.0019075]
[1723916837478,0.128558,59650.0,59649.0,0.0019075]
[1723916838382,0.127558,59650.0,59649.0,0.0019075]
[1723916838768,0.976356,59650.0,59649.0,0.0039075]
[1723916838896,1.056856,59650.0,59649.0,0.0039075]
[1723916839097,1.056856,59650.0,59649.0,0.0069075]
[1723916839707,1.055856,59650.0,59649.0,0.0039075]
[1723916840283,1.055856,59650.0,59649.0,0.0069075]
[1723916841800,1.055856,59650.0,59649.0,0.0079075]
[1723916843641,1.055856,59650.0,59649.0,0.0069075]
[1723916843985,1.149256,59650.0,59649.0,0.0069075]
[1723916844717,1.249256,59650.0,59649.0,0.0069075]
[1723916844957,1.27550622,59650.0,59649.0,0.0069075]
[1723916845153,1.25943371,59650.0,59649.0,0.0069075]
[1723916845365,1.28568395,59650.0,59649.0,0.0069075]
[1723916845666,1.28568395,59650.0,59649.0,0.0009075]
[1723916845818,1.29368395,59650.0,59649.0,0.0009075]
[1723916845977,1.30368395,59650.0,59649.0,0.0009075]
[1723916846425,1.35375427,59650.0,59649.0,0.0009075]
[1723916850059,1.27743371,59650.0,59649.0,0.0009075]
[1723916851683,1.18403371,59650.0,59649.0,0.0009075]
[1723916851880,1.27743371,59650.0,59649.0,0.0009075]
[1723916854512,1.30368325,59650.0,59649.0,0.0009075]
[1723916858147,1.35375357,59650.0,59649.0,0.0009075]
[1723916858351,1.60521957,59650.0,59649.0,0.0009075]
[1723916858543,1.55514925,59650.0,59649.0,0.0009075]
[1723916858692,1.65528989,59650.0,59649.0,0.0009075]
[1723916859506,1.70345945,59650.0,59649.0,0.0009075]
[1723916859952,1.57814925,59650.0,59649.0,0.0009075]
[1723916862314,1.70346606,59650.0,59649.0,0.0009075]
[1723916865217,1.58014925,59650.0,59649.0,0.0009075]
[1723916866210,1.72936021,59650.0,59649.0,0.0009075]
[1723916866466,1.73036021,59650.0,59649.0,0.0009075]
[1723916866699,1.73050239,59650.0,59649.0,0.0009075]
[1723916867850,1.72850239,59650.0,59649.0,0.0009075]
[1723916868213,1.57814925,59650.0,59649.0,0.0009075]
[1723916869716,1.48474925,59650.0,59649.0,0.0009075]
[1723916869972,1.57814925,59650.0,59649.0,0.0009075]
[1723916870182,1.70340272,59650.0,59649.0,0.0009075]
[1723916873825,1.57814925,59650.0,59649.0,0.0009075]
[1723916874552,1.57914925,59650.0,59649.0,0.0009075]
[1723916874982,1.58014925,59650.0,59649.0,0.0009075]
[1723916876013,1.57014925,59650.0,59649.0,0.0009075]
[1723916876442,1.58414925,59650.0,59649.0,0.0009075]
[1723916876973,1.61045942,59650.0,59649.0,0.0009075]
[1723916877178,1.60045942,59650.0,59649.0,0.0009075]
[1723916877539,1.61445942,59650.0,59649.0,0.0009075]
[1723916877886,1.58187828,59650.0,59649.0,0.0009075]
[1723916880219,1.55005942,59650.0,59649.0,0.0009075]
[1723916880418,1.67531797,59650.0,59649.0,0.0009075]
[1723916881030,1.55005942,59650.0,59649.0,0.0009075]
[1723916887150,2.01352115,59650.0,59649.0,0.0009075]
[1723916887358,1.86412542,59650.0,59649.0,0.0009075]
[1723916888459,2.18229142,59650.0,59649.0,5e-07]
[1723916890111,2.16829142,59650.0,59649.0,5e-07]
[1723916890311,2.15429142,59650.0,59649.0,5e-07]
[1723916890569,2.18229142,59650.0,59649.0,5e-07]
[1723916890871,2.15429142,59650.0,59649.0,5e-07]
[1723916891083,2.32357497,59650.0,59649.0,5e-07]
[1723916891228,2.33757497,59650.0,59649.0,5e-07]
[1723916891838,2.32357497,59650.0,59649.0,5e-07]
[1723916892035,2.32257497,59650.0,59649.0,5e-07]
[1723916892234,2.15329142,59650.0,59649.0,5e-07]
[1723916892662,2.16829142,59650.0,59649.0,5e-07]
[1723916892882,2.18229142,59650.0,59649.0,5e-07]
[1723916893302,2.33758253,59650.0,59649.0,5e-07]
[1723916893606,2.52313707,59650.0,59649.0,5e-07]
[1723916893889,2.50913707,59650.0,59649.0,5e-07]
[1723916894264,2.52313707,59650.0,59649.0,5e-07]
[1723916894440,2.50913707,59650.0,59649.0,5e-07]
[1723916894848,2.52313707,59650.0,59649.0,5e-07]
[1723916895050,2.35384596,59650.0,59649.0,5e-07]
[1723916895635,2.18229142,59650.0,59649.0,5e-07]
[1723916896060,2.35158253,59650.0,59649.0,5e-07]
[1723916896406,2.18229142,59650.0,59649.0,5e-07]
[1723916898021,2.08589142,59650.0,59649.0,5e-07]
[1723916898349,1.50368714,59650.0,59649.0,5e-07]
[1723916898473,1.35315942,59650.0,59649.0,0.0664005]
[1723916899285,1.44655942,59650.0,59649.0,0.0664005]
[1723916899485,1.43255942,59650.0,59649.0,0.0664005]
[1723916899707,1.44655942,59650.0,59649.0,0.0664005]
[1723916899908,1.46955942,59650.0,59649.0,0.0664005]
[1723916900173,1.45555942,59650.0,59649.0,0.0664005]
[1723916900391,1.46955942,59650.0,59649.0,0.0664005]
[1723916900783,1.37615942,59650.0,59649.0,0.0664005]
[1723916900987,1.46955942,59650.0,59649.0,0.0664005]
[1723916901307,1.59505048,59650.0,59649.0,0.1484005]
[1723916902739,1.46955942,59650.0,59649.0,0.1484005]
[1723916903751,1.46955942,59650.0,59649.0,0.0664005]
[1723916904202,1.62015694,59650.0,59649.0,5e-07]
[1723916904700,1.46955942,59650.0,59649.0,5e-07]
[1723916913885,1.85982542,59650.0,59649.0,5e-07]
[1723916914134,2.03316134,59650.0,59649.0,5e-07]
[1723916914345,2.28460265,59650.0,59649.0,5e-07]
[1723916914590,2.11529142,59650.0,59649.0,5e-07]
[1723916919951,2.28454304,59650.0,59649.0,5e-07]
[1723916920153,2.11529142,59650.0,59649.0,5e-07]
[1723916920742,2.11229142,59650.0,59649.0,5e-07]
[1723916920959,2.11429142,59650.0,59649.0,5e-07]
[1723916921135,2.11529142,59650.0,59649.0,5e-07]
[1723916921337,2.2845337,59650.0,59649.0,5e-07]
[1723916921552,2.45608824,59650.0,59649.0,5e-07]
[1723916921766,2.28684596,59650.0,59649.0,5e-07]
[1723916924753,2.21971394,59650.0,59649.0,5e-07]
[1723916924964,2.05149142,59650.0,59649.0,5e-07]
[1723916927582,1.62762542,59650.0,59649.0,5e-07]
[1723916927757,1.72102542,59650.0,59649.0,5e-07]
[1723916932598,1.8714198,59650.0,59649.0,5e-07]
[1723916932801,1.72102542,59650.0,59649.0,5e-07]
[1723916933003,1.87141082,59650.0,59649.0,5e-07]
[1723916933949,1.87140946,59650.0,59649.0,5e-07]
[1723916934832,2.01888565,59650.0,59649.0,5e-07]
[1723916935196,1.87140946,59650.0,59649.0,5e-07]
[1723916936238,1.61994346,59650.0,59649.0,5e-07]
[1723916936438,1.46955942,59650.0,59649.0,0.1427005]
[1723916936972,1.46955942,59650.0,59649.0,0.0627005]
[1723916940631,1.872998,59650.0,59649.0,5e-07]
[1723916941031,1.873998,59650.0,59649.0,5e-07]
[1723916941234,1.70144346,59650.0,59649.0,5e-07]
[1723916941446,1.60804346,59650.0,59649.0,5e-07]
[1723916941641,1.45765942,59650.0,59649.0,5e-07]
[1723916942313,1.60804346,59650.0,59649.0,5e-07]
[1723916942580,1.70144346,59650.0,59649.0,5e-07]
[1723916943078,1.55105942,59650.0,59649.0,5e-07]
[1723916944392,1.55105942,59650.0,59644.0,0.0659]
[1723916944393,1.131691,59645.0,59644.0,0.1489785]
[1723916944541,1.25794054,59645.0,59644.0,0.1489785]
[1723916944974,0.75496654,59645.0,59644.0,0.1489785]
[1723916945177,0.70505723,59645.0,59644.0,0.1489785]
[1723916945388,0.37723,59645.0,59644.0,0.1489785]
[1723916946633,0.48823,59645.0,59644.0,0.1489785]
[1723916946772,0.48823,59645.0,59644.0,0.1499785]
[1723916947207,0.02,59645.0,59644.0,0.1499785]
[1723916947628,0.145743,59645.0,59644.0,0.1499785]